[Event "Titled Tuesday Blitz November 15 Early 2022"]
[White "Demchenko, Anton"]
[Black "Fathy, Elameir"]
[WhiteFideId "4160258"]
[BlackFideId "10600396"]
[WhiteElo "2545"]
[BlackElo "2311"]
[Result "1-0"]
[Round "10"]
[TimeControl "180+1"]
[Date "2022.11.16"]
[WhiteClock "0:00:46"]
[BlackClock "0:00:01"]

1. e4 {[%clk 0:02:55]}  c5 {[%clk 0:02:59]} 2. Nf3 {[%clk 0:02:52]}  d6 {[%clk 0:03:00]} 3. d4 {[%clk 0:02:52]}  cxd4 {[%clk 0:03:01]} 4. Nxd4 {[%clk 0:02:53]}  Nf6 {[%clk 0:03:00]} 5. Nc3 {[%clk 0:02:54]}  a6 {[%clk 0:03:00]} 6. Bg5 {[%clk 0:02:52]}  e6 {[%clk 0:03:00]} 7. f4 {[%clk 0:02:50]}  Be7 {[%clk 0:03:00]} 8. Qf3 {[%clk 0:02:50]}  Qc7 {[%clk 0:02:58]} 9. O-O-O {[%clk 0:02:48]}  Nbd7 {[%clk 0:02:58]} 10. g4 {[%clk 0:02:48]}  h6 {[%clk 0:02:56]} 11. Bxf6 {[%clk 0:02:44]}  Bxf6 {[%clk 0:02:57]} 12. Bg2 {[%clk 0:02:35]}  Nb6 {[%clk 0:02:56]} 13. h4 {[%clk 0:02:26]}  Bd7 {[%clk 0:02:51]} 14. g5 {[%clk 0:02:21]}  Be7 {[%clk 0:02:48]} 15. Nce2 {[%clk 0:02:02]}  d5 {[%clk 0:02:04]} 16. exd5 {[%clk 0:01:55]}  Nxd5 {[%clk 0:02:04]} 17. f5 {[%clk 0:01:42]}  hxg5 {[%clk 0:01:56]} 18. fxe6 {[%clk 0:01:42]}  fxe6 {[%clk 0:01:52]} 19. Qe4 {[%clk 0:01:43]}  Nf4 {[%clk 0:01:27]} 20. Kb1 {[%clk 0:01:42]}  Nxg2 {[%clk 0:01:14]} 21. Qg6+ {[%clk 0:01:42]}  Kf8 {[%clk 0:01:13]} 22. hxg5 {[%clk 0:01:43]}  Rxh1 {[%clk 0:00:40]} 23. Rxh1 {[%clk 0:01:44]}  Kg8 {[%clk 0:00:30]} 24. Qh7+ {[%clk 0:01:30]}  Kf7 {[%clk 0:00:29]} 25. Rf1+ {[%clk 0:01:30]}  Bf6 {[%clk 0:00:25]} 26. Rxf6+ {[%clk 0:01:29]}  Ke7 {[%clk 0:00:24]} 27. Qxg7+ {[%clk 0:01:29]}  Kd6 {[%clk 0:00:24]} 28. Rf2 {[%clk 0:01:16]}  Ne3 {[%clk 0:00:23]} 29. Rf3 {[%clk 0:01:10]}  Nd5 {[%clk 0:00:23]} 30. g6 {[%clk 0:01:05]}  Bc6 {[%clk 0:00:12]} 31. Qh6 {[%clk 0:01:00]}  Qa5 {[%clk 0:00:10]} 32. c3 {[%clk 0:00:58]}  Ne7 {[%clk 0:00:03]} 33. g7 {[%clk 0:00:49]}  Bxf3 {[%clk 0:00:01]} 34. Qxe6+ {[%clk 0:00:49]}  Kc7 {[%clk 0:00:01]} 35. Qxe7+ {[%clk 0:00:50]}  Kb6 {[%clk 0:00:01]} 36. Qe6+ {[%clk 0:00:48]}  Ka7 {[%clk 0:00:02]} 37. Nxf3 {[%clk 0:00:48]}  Qh5 {[%clk 0:00:01]} 38. Qe3+ {[%clk 0:00:48]}  Kb8 {[%clk 0:00:01]} 39. g8=Q+ {[%clk 0:00:46]} 1-0


[Site "https://www.chess.com"]

[Event "Titled Tuesday Blitz November 15 Early 2022"]
[White "Desideri, Ricardo Maruchi"]
[Black "Winkels, Marcel"]
[WhiteFideId "2110440"]
[BlackFideId "1003887"]
[WhiteElo "1945"]
[BlackElo "1900"]
[Result "1/2-1/2"]
[Round "10"]
[TimeControl "180+1"]
[Date "2022.11.16"]
[WhiteClock "0:01:17"]
[BlackClock "0:01:27"]

1. e4 {[%clk 0:03:00]}  c5 {[%clk 0:02:58]} 2. Nf3 {[%clk 0:02:58]}  d6 {[%clk 0:02:58]} 3. d4 {[%clk 0:02:58]}  cxd4 {[%clk 0:02:59]} 4. Nxd4 {[%clk 0:02:58]}  Nf6 {[%clk 0:02:59]} 5. Nc3 {[%clk 0:02:59]}  a6 {[%clk 0:03:00]} 6. Rg1 {[%clk 0:02:57]}  h5 {[%clk 0:02:58]} 7. h3 {[%clk 0:02:56]}  h4 {[%clk 0:02:56]} 8. f4 {[%clk 0:02:46]}  Nc6 {[%clk 0:02:54]} 9. Be3 {[%clk 0:02:43]}  Qb6 {[%clk 0:02:48]} 10. Qd2 {[%clk 0:02:36]}  Qxb2 {[%clk 0:02:41]} 11. Rb1 {[%clk 0:02:30]}  Qa3 {[%clk 0:02:40]} 12. Nxc6 {[%clk 0:02:22]}  bxc6 {[%clk 0:02:39]} 13. e5 {[%clk 0:02:20]}  dxe5 {[%clk 0:02:20]} 14. fxe5 {[%clk 0:02:19]}  Nd5 {[%clk 0:02:21]} 15. Nxd5 {[%clk 0:02:18]}  cxd5 {[%clk 0:02:21]} 16. Qxd5 {[%clk 0:02:14]}  Qxe3+ {[%clk 0:02:19]} 17. Kd1 {[%clk 0:02:10]}  Bg4+ {[%clk 0:02:09]} 18. hxg4 {[%clk 0:01:51]}  Rd8 {[%clk 0:02:07]} 19. Rb8 {[%clk 0:01:51]}  Rxb8 {[%clk 0:02:03]} 20. Qc6+ {[%clk 0:01:45]}  Kd8 {[%clk 0:02:00]} 21. Qd5+ {[%clk 0:01:35]}  Kc7 {[%clk 0:01:58]} 22. Qc4+ {[%clk 0:01:32]}  Kb6 {[%clk 0:01:51]} 23. Qxa6+ {[%clk 0:01:31]}  Kc7 {[%clk 0:01:44]} 24. Qc4+ {[%clk 0:01:30]}  Kb7 {[%clk 0:01:38]} 25. Qa6+ {[%clk 0:01:29]}  Kc7 {[%clk 0:01:36]} 26. Qc4+ {[%clk 0:01:28]}  Kd8 {[%clk 0:01:31]} 27. Qd5+ {[%clk 0:01:27]}  Ke8 {[%clk 0:01:30]} 28. Qc6+ {[%clk 0:01:19]}  Kd8 {[%clk 0:01:29]} 29. Qd5+ {[%clk 0:01:19]}  Kc7 {[%clk 0:01:27]} 30. Qc4+ {[%clk 0:01:17]} 1/2-1/2


[Site "https://www.chess.com"]

[Event "Titled Tuesday Blitz November 15 Early 2022"]
[White "Deuer, Marius"]
[Black "Orlov, Georgi"]
[WhiteFideId "16236432"]
[BlackFideId "2011271"]
[WhiteElo "2226"]
[BlackElo "2529"]
[Result "0-1"]
[Round "10"]
[TimeControl "180+1"]
[Date "2022.11.16"]
[WhiteClock "0:01:02"]
[BlackClock "0:01:05"]

1. c4 {[%clk 0:02:37]}  Nf6 {[%clk 0:02:59]} 2. Nc3 {[%clk 0:02:33]}  Nc6 {[%clk 0:02:56]} 3. d4 {[%clk 0:02:32]}  e5 {[%clk 0:02:56]} 4. d5 {[%clk 0:02:31]}  Ne7 {[%clk 0:02:56]} 5. Nf3 {[%clk 0:02:31]}  Ng6 {[%clk 0:02:55]} 6. g3 {[%clk 0:02:31]}  Bb4 {[%clk 0:02:43]} 7. Bg2 {[%clk 0:02:30]}  Bxc3+ {[%clk 0:02:41]} 8. bxc3 {[%clk 0:02:29]}  d6 {[%clk 0:02:42]} 9. O-O {[%clk 0:02:26]}  O-O {[%clk 0:02:37]} 10. Nd2 {[%clk 0:02:23]}  Nd7 {[%clk 0:02:33]} 11. Ba3 {[%clk 0:02:01]}  b6 {[%clk 0:02:28]} 12. e3 {[%clk 0:02:00]}  f5 {[%clk 0:02:25]} 13. f4 {[%clk 0:01:59]}  Qe7 {[%clk 0:02:21]} 14. fxe5 {[%clk 0:01:57]}  Ngxe5 {[%clk 0:02:18]} 15. e4 {[%clk 0:01:57]}  Nc5 {[%clk 0:01:56]} 16. Bxc5 {[%clk 0:01:53]}  bxc5 {[%clk 0:01:56]} 17. Qe2 {[%clk 0:01:41]}  Bd7 {[%clk 0:01:45]} 18. Rae1 {[%clk 0:01:37]}  Rae8 {[%clk 0:01:38]} 19. Nf3 {[%clk 0:01:14]}  Ng6 {[%clk 0:01:30]} 20. Nd2 {[%clk 0:01:10]}  f4 {[%clk 0:01:29]} 21. Qh5 {[%clk 0:01:04]}  Qf6 {[%clk 0:01:23]} 22. Rf3 {[%clk 0:01:02]}  Re5 {[%clk 0:01:05]} 0-1


[Site "https://www.chess.com"]

[Event "Titled Tuesday Blitz November 15 Early 2022"]
[White "Devaev, Alexander"]
[Black "Ambartsumova, Karina"]
[WhiteFideId "4169395"]
[BlackFideId "4166299"]
[WhiteElo "2225"]
[BlackElo "2319"]
[Result "0-1"]
[Round "10"]
[TimeControl "180+1"]
[Date "2022.11.16"]
[WhiteClock "0:00:01"]
[BlackClock "0:00:14"]

1. d4 {[%clk 0:02:56]}  Nf6 {[%clk 0:02:59]} 2. c4 {[%clk 0:02:55]}  e6 {[%clk 0:02:59]} 3. Nf3 {[%clk 0:02:55]}  d5 {[%clk 0:02:59]} 4. Nc3 {[%clk 0:02:56]}  Bb4 {[%clk 0:02:58]} 5. Qb3 {[%clk 0:02:55]}  Be7 {[%clk 0:02:39]} 6. Bg5 {[%clk 0:02:48]}  c6 {[%clk 0:02:39]} 7. e3 {[%clk 0:02:47]}  O-O {[%clk 0:02:39]} 8. cxd5 {[%clk 0:02:44]}  exd5 {[%clk 0:02:39]} 9. Bd3 {[%clk 0:02:44]}  Nbd7 {[%clk 0:02:28]} 10. O-O {[%clk 0:02:42]}  Ne4 {[%clk 0:02:18]} 11. Bxe7 {[%clk 0:01:59]}  Qxe7 {[%clk 0:02:19]} 12. Bxe4 {[%clk 0:01:58]}  dxe4 {[%clk 0:02:19]} 13. Nd2 {[%clk 0:01:59]}  Nf6 {[%clk 0:02:16]} 14. Qc2 {[%clk 0:01:40]}  Re8 {[%clk 0:02:12]} 15. Rac1 {[%clk 0:01:31]}  Bf5 {[%clk 0:01:59]} 16. Ne2 {[%clk 0:01:30]}  Nd5 {[%clk 0:01:50]} 17. a3 {[%clk 0:01:25]}  Qg5 {[%clk 0:01:41]} 18. Kh1 {[%clk 0:01:09]}  h5 {[%clk 0:01:33]} 19. Nc3 {[%clk 0:00:53]}  Nf6 {[%clk 0:01:29]} 20. Rce1 {[%clk 0:00:36]}  h4 {[%clk 0:01:23]} 21. f4 {[%clk 0:00:26]}  exf3 {[%clk 0:01:17]} 22. Nxf3 {[%clk 0:00:26]}  Qh5 {[%clk 0:00:56]} 23. Qf2 {[%clk 0:00:23]}  h3 {[%clk 0:00:50]} 24. Qh4 {[%clk 0:00:16]}  Qxh4 {[%clk 0:00:32]} 25. Nxh4 {[%clk 0:00:16]}  Bd3 {[%clk 0:00:33]} 26. Rf4 {[%clk 0:00:14]}  hxg2+ {[%clk 0:00:33]} 27. Nxg2 {[%clk 0:00:13]}  Re7 {[%clk 0:00:30]} 28. Kg1 {[%clk 0:00:12]}  Rae8 {[%clk 0:00:30]} 29. Kf2 {[%clk 0:00:12]}  Ne4+ {[%clk 0:00:27]} 30. Nxe4 {[%clk 0:00:12]}  Bxe4 {[%clk 0:00:28]} 31. Re2 {[%clk 0:00:04]}  Bxg2 {[%clk 0:00:27]} 32. Kxg2 {[%clk 0:00:04]}  Rxe3 {[%clk 0:00:27]} 33. Rxe3 {[%clk 0:00:05]}  Rxe3 {[%clk 0:00:28]} 34. Rf2 {[%clk 0:00:05]}  Rd3 {[%clk 0:00:28]} 35. Re2 {[%clk 0:00:04]}  Rxd4 {[%clk 0:00:26]} 36. Re8+ {[%clk 0:00:01]}  Kh7 {[%clk 0:00:26]} 37. b4 {[%clk 0:00:02]}  Rd2+ {[%clk 0:00:22]} 38. Kg1 {[%clk 0:00:02]}  Rd7 {[%clk 0:00:18]} 39. Ra8 {[%clk 0:00:03]}  a6 {[%clk 0:00:18]} 40. Kf2 {[%clk 0:00:03]}  Kg6 {[%clk 0:00:19]} 41. Re8 {[%clk 0:00:03]}  f6 {[%clk 0:00:19]} 42. Re3 {[%clk 0:00:04]}  Kf5 {[%clk 0:00:19]} 43. Rf3+ {[%clk 0:00:03]}  Ke4 {[%clk 0:00:16]} 44. Re3+ {[%clk 0:00:02]}  Kf4 {[%clk 0:00:15]} 45. Ke2 {[%clk 0:00:02]}  g5 {[%clk 0:00:15]} 46. Rf3+ {[%clk 0:00:01]}  Ke5 {[%clk 0:00:14]} 0-1


[Site "https://www.chess.com"]

[Event "Titled Tuesday Blitz November 15 Early 2022"]
[White "Dixit, Nikhil"]
[Black "Tanenbaum, Zachary"]
[WhiteFideId "5059534"]
[BlackFideId "2060850"]
[WhiteElo "2565"]
[BlackElo "2757"]
[Result "0-1"]
[Round "10"]
[TimeControl "180+1"]
[Date "2022.11.16"]
[WhiteClock "0:00:01"]
[BlackClock "0:00:02"]

1. e4 {[%clk 0:03:00]}  e5 {[%clk 0:02:59]} 2. Nf3 {[%clk 0:02:59]}  Nc6 {[%clk 0:03:00]} 3. Nc3 {[%clk 0:03:00]}  Nf6 {[%clk 0:03:00]} 4. d4 {[%clk 0:03:00]}  exd4 {[%clk 0:03:00]} 5. Nxd4 {[%clk 0:03:01]}  Bb4 {[%clk 0:03:00]} 6. Nxc6 {[%clk 0:03:02]}  bxc6 {[%clk 0:03:01]} 7. Bd3 {[%clk 0:03:02]}  d5 {[%clk 0:03:00]} 8. exd5 {[%clk 0:03:03]}  O-O {[%clk 0:03:01]} 9. O-O {[%clk 0:03:03]}  cxd5 {[%clk 0:03:01]} 10. Bg5 {[%clk 0:03:03]}  c6 {[%clk 0:03:01]} 11. Qf3 {[%clk 0:03:03]}  Be7 {[%clk 0:02:54]} 12. Rfe1 {[%clk 0:03:02]}  Be6 {[%clk 0:02:53]} 13. h3 {[%clk 0:03:01]}  Rb8 {[%clk 0:02:53]} 14. Rab1 {[%clk 0:02:58]}  c5 {[%clk 0:02:51]} 15. Ne2 {[%clk 0:02:48]}  d4 {[%clk 0:02:39]} 16. Nf4 {[%clk 0:02:00]}  Bxa2 {[%clk 0:02:35]} 17. Ra1 {[%clk 0:01:58]}  Rxb2 {[%clk 0:02:26]} 18. Rxa2 {[%clk 0:01:40]}  Rxa2 {[%clk 0:02:26]} 19. Nh5 {[%clk 0:01:38]}  c4 {[%clk 0:00:36]} 20. Rxe7 {[%clk 0:01:07]}  Nxh5 {[%clk 0:00:21]} 21. Bxh7+ {[%clk 0:00:36]}  Kxh7 {[%clk 0:00:16]} 22. Qxh5+ {[%clk 0:00:36]}  Kg8 {[%clk 0:00:15]} 23. Re4 {[%clk 0:00:20]}  Qd6 {[%clk 0:00:09]} 24. g3 {[%clk 0:00:20]}  Ra1+ {[%clk 0:00:08]} 25. Kh2 {[%clk 0:00:19]}  Qd5 {[%clk 0:00:08]} 26. f3 {[%clk 0:00:11]}  Ra2 {[%clk 0:00:06]} 27. Rh4 {[%clk 0:00:10]}  Rxc2+ {[%clk 0:00:06]} 28. Kg1 {[%clk 0:00:10]}  f5 {[%clk 0:00:04]} 29. Qh7+ {[%clk 0:00:06]}  Kf7 {[%clk 0:00:04]} 30. Bh6 {[%clk 0:00:06]}  Qe5 {[%clk 0:00:02]} 31. Re4 {[%clk 0:00:01]}  Qxg3+ {[%clk 0:00:01]} 32. Kh1 {[%clk 0:00:01]}  Qg2# {[%clk 0:00:02]} 0-1


[Site "https://www.chess.com"]

[Event "Titled Tuesday Blitz November 15 Early 2022"]
[White "Donchenko, Alexander"]
[Black "Ristic, Nebojsa B"]
[WhiteFideId "24603295"]
[BlackFideId "935468"]
[WhiteElo "2572"]
[BlackElo "2320"]
[Result "1-0"]
[Round "10"]
[TimeControl "180+1"]
[Date "2022.11.16"]
[WhiteClock "0:01:29"]
[BlackClock "0:00:09"]

1. e4 {[%clk 0:03:00]}  Nc6 {[%clk 0:02:59]} 2. Nf3 {[%clk 0:03:01]}  d6 {[%clk 0:03:00]} 3. Bb5 {[%clk 0:03:00]}  a6 {[%clk 0:03:00]} 4. Bxc6+ {[%clk 0:03:00]}  bxc6 {[%clk 0:03:01]} 5. h3 {[%clk 0:03:00]}  c5 {[%clk 0:03:01]} 6. O-O {[%clk 0:02:59]}  e5 {[%clk 0:03:00]} 7. c3 {[%clk 0:02:59]}  Nf6 {[%clk 0:02:59]} 8. d4 {[%clk 0:02:59]}  cxd4 {[%clk 0:02:59]} 9. cxd4 {[%clk 0:03:00]}  exd4 {[%clk 0:02:53]} 10. Qxd4 {[%clk 0:02:58]}  Be7 {[%clk 0:02:51]} 11. Nc3 {[%clk 0:02:59]}  O-O {[%clk 0:02:50]} 12. Bg5 {[%clk 0:02:58]}  h6 {[%clk 0:02:50]} 13. Bh4 {[%clk 0:02:58]}  Bb7 {[%clk 0:02:49]} 14. Rac1 {[%clk 0:02:58]}  Nd7 {[%clk 0:02:46]} 15. Bxe7 {[%clk 0:02:57]}  Qxe7 {[%clk 0:02:47]} 16. Nd5 {[%clk 0:02:50]}  Bxd5 {[%clk 0:02:40]} 17. exd5 {[%clk 0:02:51]}  Nb6 {[%clk 0:02:37]} 18. Rfe1 {[%clk 0:02:50]}  Qd7 {[%clk 0:02:37]} 19. Red1 {[%clk 0:02:45]}  Rfc8 {[%clk 0:02:30]} 20. Rc6 {[%clk 0:02:44]}  a5 {[%clk 0:02:29]} 21. Qc3 {[%clk 0:02:38]}  Na4 {[%clk 0:02:20]} 22. Qc2 {[%clk 0:02:33]}  Nc5 {[%clk 0:02:20]} 23. Nd4 {[%clk 0:02:33]}  Rcb8 {[%clk 0:02:15]} 24. Re1 {[%clk 0:02:30]}  Rb4 {[%clk 0:02:14]} 25. Nf5 {[%clk 0:02:28]}  Re8 {[%clk 0:02:01]} 26. Rxe8+ {[%clk 0:02:25]}  Qxe8 {[%clk 0:02:02]} 27. Rxc7 {[%clk 0:02:25]}  Qe1+ {[%clk 0:01:49]} 28. Kh2 {[%clk 0:02:25]}  Qe5+ {[%clk 0:01:47]} 29. Ng3 {[%clk 0:02:10]}  g6 {[%clk 0:01:47]} 30. b3 {[%clk 0:02:08]}  Qxd5 {[%clk 0:01:43]} 31. Qe2 {[%clk 0:02:06]}  Ne6 {[%clk 0:01:36]} 32. Ra7 {[%clk 0:02:00]}  h5 {[%clk 0:01:31]} 33. Qe3 {[%clk 0:01:56]}  h4 {[%clk 0:01:25]} 34. Nf1 {[%clk 0:01:49]}  Re4 {[%clk 0:01:26]} 35. Qf3 {[%clk 0:01:46]}  Qe5+ {[%clk 0:01:23]} 36. Kg1 {[%clk 0:01:46]}  Rf4 {[%clk 0:01:15]} 37. Qe3 {[%clk 0:01:45]}  Qf5 {[%clk 0:00:58]} 38. Qd2 {[%clk 0:01:39]}  Rd4 {[%clk 0:00:17]} 39. Qh6 {[%clk 0:01:29]}  Qd5 {[%clk 0:00:15]} 40. Ne3 {[%clk 0:01:30]}  Qc6 {[%clk 0:00:13]} 41. Ng4 {[%clk 0:01:29]}  Rd1+ {[%clk 0:00:12]} 42. Kh2 {[%clk 0:01:29]}  Nf4 {[%clk 0:00:09]} 43. Nf6# {[%clk 0:01:29]} 1-0


[Site "https://www.chess.com"]

[Event "Titled Tuesday Blitz November 15 Early 2022"]
[White "Donskov, Anatoly"]
[Black "Tsaruk, Maksim"]
[WhiteFideId "24143413"]
[BlackFideId "13511173"]
[WhiteElo "2556"]
[BlackElo "2750"]
[Result "0-1"]
[Round "10"]
[TimeControl "180+1"]
[Date "2022.11.16"]
[WhiteClock "0:00:05"]
[BlackClock "0:00:10"]

1. e4 {[%clk 0:03:00]}  e5 {[%clk 0:02:52]} 2. Nf3 {[%clk 0:03:00]}  Nc6 {[%clk 0:02:52]} 3. Bb5 {[%clk 0:03:01]}  a6 {[%clk 0:02:52]} 4. Ba4 {[%clk 0:03:01]}  b5 {[%clk 0:02:52]} 5. Bb3 {[%clk 0:03:01]}  Nf6 {[%clk 0:02:51]} 6. Qe2 {[%clk 0:02:59]}  Bb7 {[%clk 0:02:50]} 7. c3 {[%clk 0:02:59]}  Be7 {[%clk 0:02:49]} 8. O-O {[%clk 0:02:59]}  O-O {[%clk 0:02:49]} 9. Rd1 {[%clk 0:02:58]}  d6 {[%clk 0:02:49]} 10. d4 {[%clk 0:02:54]}  Qc8 {[%clk 0:02:49]} 11. h3 {[%clk 0:02:52]}  h6 {[%clk 0:02:44]} 12. Nbd2 {[%clk 0:02:51]}  Re8 {[%clk 0:02:43]} 13. Nf1 {[%clk 0:02:50]}  Bf8 {[%clk 0:02:41]} 14. Ng3 {[%clk 0:02:50]}  exd4 {[%clk 0:02:35]} 15. cxd4 {[%clk 0:02:50]}  Nb4 {[%clk 0:02:34]} 16. e5 {[%clk 0:02:40]}  Bd5 {[%clk 0:02:13]} 17. Bd2 {[%clk 0:01:29]}  Bxb3 {[%clk 0:02:01]} 18. axb3 {[%clk 0:01:30]}  Nbd5 {[%clk 0:01:36]} 19. Rac1 {[%clk 0:01:28]}  Qe6 {[%clk 0:01:24]} 20. Qd3 {[%clk 0:01:15]}  Nd7 {[%clk 0:01:24]} 21. Rc6 {[%clk 0:00:58]}  Qg6 {[%clk 0:00:25]} 22. Qe2 {[%clk 0:00:22]}  Qh7 {[%clk 0:00:23]} 23. Re1 {[%clk 0:00:17]}  Re6 {[%clk 0:00:19]} 24. b4 {[%clk 0:00:15]}  Rae8 {[%clk 0:00:16]} 25. Bc3 {[%clk 0:00:15]}  dxe5 {[%clk 0:00:15]} 26. dxe5 {[%clk 0:00:15]}  Rxc6 {[%clk 0:00:15]} 27. Bd4 {[%clk 0:00:13]}  Bxb4 {[%clk 0:00:14]} 28. Rd1 {[%clk 0:00:13]}  Qc2 {[%clk 0:00:14]} 29. Qf1 {[%clk 0:00:12]}  Nf4 {[%clk 0:00:13]} 30. Be3 {[%clk 0:00:11]}  Nxe5 {[%clk 0:00:07]} 31. Nxe5 {[%clk 0:00:09]}  Rxe5 {[%clk 0:00:08]} 32. Bxf4 {[%clk 0:00:10]}  Qxd1 {[%clk 0:00:09]} 33. Bxe5 {[%clk 0:00:07]}  Qxf1+ {[%clk 0:00:08]} 34. Nxf1 {[%clk 0:00:08]}  Rc1 {[%clk 0:00:08]} 35. g3 {[%clk 0:00:07]}  a5 {[%clk 0:00:08]} 36. Kg2 {[%clk 0:00:07]}  Bc5 {[%clk 0:00:08]} 37. Nd2 {[%clk 0:00:07]}  Rc2 {[%clk 0:00:09]} 38. Ne4 {[%clk 0:00:07]}  a4 {[%clk 0:00:09]} 39. Bxc7 {[%clk 0:00:05]}  Bxf2 {[%clk 0:00:08]} 40. Bf4 {[%clk 0:00:03]}  Be3+ {[%clk 0:00:08]} 41. Kf3 {[%clk 0:00:04]}  Bxf4 {[%clk 0:00:09]} 42. gxf4 {[%clk 0:00:04]}  Rxb2 {[%clk 0:00:09]} 43. Nd6 {[%clk 0:00:05]}  a3 {[%clk 0:00:10]} 0-1


[Site "https://www.chess.com"]

[Event "Titled Tuesday Blitz November 15 Early 2022"]
[White "Dubov, Daniil"]
[Black "Madaminov, Mukhiddin"]
[WhiteFideId "24126055"]
[BlackFideId "14210703"]
[WhiteElo "2791"]
[BlackElo "2341"]
[Result "1-0"]
[Round "10"]
[TimeControl "180+1"]
[Date "2022.11.15"]
[WhiteClock "0:00:02"]
[BlackClock "0:00:02"]

1. e4 {[%clk 0:03:00]}  e5 {[%clk 0:02:59]} 2. Nf3 {[%clk 0:03:01]}  Nc6 {[%clk 0:03:00]} 3. Bc4 {[%clk 0:03:01]}  Bc5 {[%clk 0:02:57]} 4. c3 {[%clk 0:03:01]}  Nf6 {[%clk 0:02:57]} 5. d4 {[%clk 0:03:02]}  exd4 {[%clk 0:02:56]} 6. cxd4 {[%clk 0:03:03]}  Bb4+ {[%clk 0:02:57]} 7. Nbd2 {[%clk 0:03:04]}  d5 {[%clk 0:02:51]} 8. exd5 {[%clk 0:03:05]}  Nxd5 {[%clk 0:02:52]} 9. O-O {[%clk 0:03:05]}  O-O {[%clk 0:02:51]} 10. Ne4 {[%clk 0:03:05]}  Be7 {[%clk 0:02:50]} 11. Re1 {[%clk 0:02:42]}  Bg4 {[%clk 0:02:42]} 12. Ng3 {[%clk 0:02:38]}  Bf6 {[%clk 0:02:37]} 13. h3 {[%clk 0:02:21]}  Bxf3 {[%clk 0:02:36]} 14. Qxf3 {[%clk 0:02:17]}  Nb6 {[%clk 0:02:37]} 15. Bb3 {[%clk 0:02:14]}  Nxd4 {[%clk 0:02:35]} 16. Qxb7 {[%clk 0:02:14]}  Rb8 {[%clk 0:02:29]} 17. Qe4 {[%clk 0:02:11]}  Re8 {[%clk 0:02:21]} 18. Qxe8+ {[%clk 0:02:10]}  Qxe8 {[%clk 0:02:21]} 19. Rxe8+ {[%clk 0:02:11]}  Rxe8 {[%clk 0:02:22]} 20. Kf1 {[%clk 0:02:10]}  c5 {[%clk 0:02:14]} 21. Be3 {[%clk 0:02:06]}  c4 {[%clk 0:02:13]} 22. Bd1 {[%clk 0:02:06]}  Nd5 {[%clk 0:02:12]} 23. Bd2 {[%clk 0:02:02]}  Rb8 {[%clk 0:01:55]} 24. Ne4 {[%clk 0:02:01]}  Be5 {[%clk 0:01:46]} 25. Rb1 {[%clk 0:01:57]}  Ne6 {[%clk 0:01:33]} 26. Rc1 {[%clk 0:01:44]}  Rxb2 {[%clk 0:01:27]} 27. Rxc4 {[%clk 0:01:41]}  f5 {[%clk 0:01:26]} 28. Rc8+ {[%clk 0:01:30]}  Kf7 {[%clk 0:01:25]} 29. Ng5+ {[%clk 0:01:22]}  Nxg5 {[%clk 0:01:19]} 30. Bxg5 {[%clk 0:01:22]}  Nc3 {[%clk 0:01:20]} 31. Bb3+ {[%clk 0:01:10]}  Kg6 {[%clk 0:01:19]} 32. f4 {[%clk 0:01:06]}  Nxa2 {[%clk 0:00:53]} 33. Ba4 {[%clk 0:00:50]}  Rb1+ {[%clk 0:00:41]} 34. Ke2 {[%clk 0:00:49]}  h6 {[%clk 0:00:26]} 35. Be8+ {[%clk 0:00:39]}  Kh7 {[%clk 0:00:26]} 36. fxe5 {[%clk 0:00:40]}  hxg5 {[%clk 0:00:26]} 37. Rc6 {[%clk 0:00:38]}  Rb6 {[%clk 0:00:11]} 38. Rxb6 {[%clk 0:00:12]}  axb6 {[%clk 0:00:11]} 39. Kd3 {[%clk 0:00:13]}  g6 {[%clk 0:00:07]} 40. Kc4 {[%clk 0:00:08]}  Kg7 {[%clk 0:00:06]} 41. Kd5 {[%clk 0:00:08]}  Nc3+ {[%clk 0:00:06]} 42. Kd6 {[%clk 0:00:08]}  Ne4+ {[%clk 0:00:06]} 43. Ke7 {[%clk 0:00:06]}  Nc3 {[%clk 0:00:02]} 44. e6 {[%clk 0:00:05]}  Nd5+ {[%clk 0:00:02]} 45. Kd6 {[%clk 0:00:04]}  Kf8 {[%clk 0:00:01]} 46. Bxg6 {[%clk 0:00:02]}  Ne7 {[%clk 0:00:02]} 47. Bh5 {[%clk 0:00:02]}  b5 {[%clk 0:00:02]} 48. Be2 {[%clk 0:00:03]}  b4 {[%clk 0:00:03]} 49. Bc4 {[%clk 0:00:03]}  Ng6 {[%clk 0:00:03]} 50. Bd3 {[%clk 0:00:03]}  Ne7 {[%clk 0:00:03]} 51. Bc2 {[%clk 0:00:03]}  Ke8 {[%clk 0:00:04]} 52. Ke5 {[%clk 0:00:03]}  f4 {[%clk 0:00:02]} 53. Kf6 {[%clk 0:00:03]}  Nd5+ {[%clk 0:00:02]} 54. Kxg5 {[%clk 0:00:03]}  Ne3 {[%clk 0:00:03]} 55. Bb3 {[%clk 0:00:02]}  Nxg2 {[%clk 0:00:02]} 56. Kf6 {[%clk 0:00:02]} 1-0


[Site "https://www.chess.com"]

[Event "Titled Tuesday Blitz November 15 Early 2022"]
[White "Durarbayli, Vasif"]
[Black "Kosteniuk, Alexandra"]
[WhiteFideId "13402935"]
[BlackFideId "4128125"]
[WhiteElo "2586"]
[BlackElo "2469"]
[Result "1-0"]
[Round "10"]
[TimeControl "180+1"]
[Date "2022.11.15"]
[WhiteClock "0:00:07"]
[BlackClock "0:00:03"]

1. e4 {[%clk 0:03:00]}  e5 {[%clk 0:02:59]} 2. Nf3 {[%clk 0:03:00]}  Nf6 {[%clk 0:02:59]} 3. Nxe5 {[%clk 0:03:00]}  d6 {[%clk 0:02:59]} 4. Nf3 {[%clk 0:03:00]}  Nxe4 {[%clk 0:03:00]} 5. d4 {[%clk 0:03:01]}  d5 {[%clk 0:03:00]} 6. Bd3 {[%clk 0:03:01]}  Bd6 {[%clk 0:03:01]} 7. O-O {[%clk 0:03:01]}  O-O {[%clk 0:03:01]} 8. Re1 {[%clk 0:03:01]}  Bf5 {[%clk 0:03:00]} 9. Nc3 {[%clk 0:03:02]}  Nxc3 {[%clk 0:02:58]} 10. bxc3 {[%clk 0:03:03]}  Bg6 {[%clk 0:02:56]} 11. Bxg6 {[%clk 0:02:23]}  fxg6 {[%clk 0:02:56]} 12. Qd3 {[%clk 0:02:05]}  Nd7 {[%clk 0:02:49]} 13. c4 {[%clk 0:02:04]}  dxc4 {[%clk 0:02:35]} 14. Qxc4+ {[%clk 0:02:04]}  Kh8 {[%clk 0:02:35]} 15. Bg5 {[%clk 0:01:58]}  Qc8 {[%clk 0:01:56]} 16. Qd3 {[%clk 0:01:50]}  Rf5 {[%clk 0:01:53]} 17. c4 {[%clk 0:01:44]}  Qg8 {[%clk 0:01:13]} 18. c5 {[%clk 0:01:35]}  Bf8 {[%clk 0:01:10]} 19. Bh4 {[%clk 0:01:09]}  Qd5 {[%clk 0:00:56]} 20. Qe3 {[%clk 0:00:53]}  h6 {[%clk 0:00:50]} 21. Bg3 {[%clk 0:00:52]}  g5 {[%clk 0:00:45]} 22. Bxc7 {[%clk 0:00:47]}  Rc8 {[%clk 0:00:44]} 23. Bg3 {[%clk 0:00:44]}  Rc6 {[%clk 0:00:35]} 24. Qe8 {[%clk 0:00:36]}  Kh7 {[%clk 0:00:29]} 25. Ne5 {[%clk 0:00:28]}  Re6 {[%clk 0:00:24]} 26. Qc8 {[%clk 0:00:14]}  Qxd4 {[%clk 0:00:10]} 27. Nxd7 {[%clk 0:00:09]}  Rxe1+ {[%clk 0:00:04]} 28. Rxe1 {[%clk 0:00:10]}  Bxc5 {[%clk 0:00:04]} 29. Nxc5 {[%clk 0:00:07]}  Rxc5 {[%clk 0:00:04]} 30. Qxb7 {[%clk 0:00:07]}  Rc2 {[%clk 0:00:02]} 31. Qb1 {[%clk 0:00:08]}  Qd3 {[%clk 0:00:01]} 32. Rc1 {[%clk 0:00:05]}  Rxc1+ {[%clk 0:00:02]} 33. Qxc1 {[%clk 0:00:06]}  h5 {[%clk 0:00:02]} 34. h4 {[%clk 0:00:05]}  gxh4 {[%clk 0:00:02]} 35. Bxh4 {[%clk 0:00:06]}  Qe4 {[%clk 0:00:02]} 36. Bg3 {[%clk 0:00:06]}  h4 {[%clk 0:00:02]} 37. Bf4 {[%clk 0:00:06]}  h3 {[%clk 0:00:03]} 38. gxh3 {[%clk 0:00:07]}  Qf3 {[%clk 0:00:03]} 39. Bg3 {[%clk 0:00:06]}  Qf5 {[%clk 0:00:03]} 40. h4 {[%clk 0:00:06]}  Qe4 {[%clk 0:00:02]} 41. a3 {[%clk 0:00:07]}  a5 {[%clk 0:00:02]} 42. Qe3 {[%clk 0:00:08]}  Qb1+ {[%clk 0:00:02]} 43. Kg2 {[%clk 0:00:08]}  a4 {[%clk 0:00:03]} 44. Qf3 {[%clk 0:00:09]}  Qb3 {[%clk 0:00:03]} 45. h5 {[%clk 0:00:09]}  Qe6 {[%clk 0:00:02]} 46. Kh2 {[%clk 0:00:09]}  Kg8 {[%clk 0:00:03]} 47. Qf4 {[%clk 0:00:08]}  Qd5 {[%clk 0:00:03]} 48. Qg4 {[%clk 0:00:07]}  Qf7 {[%clk 0:00:03]} 49. h6 {[%clk 0:00:07]} 1-0


[Site "https://www.chess.com"]